[Event "*** Biggest EVER Titled Tuesday"]
[Site "Chess.com"]
[Date "2018.04.17"]
[Round "4"]
[White "calemcc"]
[Black "grzechu96"]
[Result "0-1"]
[WhiteElo "2247"]
[BlackElo "2448"]
[TimeControl "180+2"]
[EndTime "13:54:30 PDT"]
[Termination "grzechu96 won by checkmate"]

1. d4 {[%clk 0:03:01.9]} 1... d5 {[%clk 0:02:59.9]} 2. c4 {[%clk 0:03:03.3]}
2... c6 {[%clk 0:02:59.8]} 3. Nc3 {[%clk 0:03:04.7]} 3... Nf6 {[%clk 0:02:56.9]}
4. e3 {[%clk 0:03:06]} 4... e6 {[%clk 0:02:48.3]} 5. Nf3 {[%clk 0:03:07.4]} 5...
Nbd7 {[%clk 0:02:48]} 6. Qc2 {[%clk 0:03:08.9]} 6... Bd6 {[%clk 0:02:47.8]} 7.
Bd2 {[%clk 0:03:10.2]} 7... O-O {[%clk 0:02:27.7]} 8. Bd3 {[%clk 0:03:11.1]}
8... dxc4 {[%clk 0:02:13.2]} 9. Bxc4 {[%clk 0:03:13]} 9... b5 {[%clk 0:02:14.7]}
10. Bd3 {[%clk 0:03:12.2]} 10... Bb7 {[%clk 0:02:14.2]} 11. Ng5 {[%clk 0:03:13]}
11... h6 {[%clk 0:01:53.7]} 12. Nce4 {[%clk 0:03:12.5]} 12... Be7 {[%clk
0:01:48]} 13. Nxf6+ {[%clk 0:03:11.8]} 13... Nxf6 {[%clk 0:01:48.9]} 14. Ne4
{[%clk 0:03:11.4]} 14... Nd7 {[%clk 0:01:42.8]} 15. b4 {[%clk 0:03:06.6]} 15...
e5 {[%clk 0:01:39.6]} 16. O-O {[%clk 0:03:04.2]} 16... exd4 {[%clk 0:01:40.6]}
17. exd4 {[%clk 0:03:04.3]} 17... Nb6 {[%clk 0:01:35.9]} 18. Nc5 {[%clk
0:03:00.2]} 18... Bc8 {[%clk 0:01:36.2]} 19. Rfe1 {[%clk 0:02:40.8]} 19... Bf6
{[%clk 0:01:34.7]} 20. Rad1 {[%clk 0:02:29]} 20... Nd5 {[%clk 0:01:24]} 21. Ne4
{[%clk 0:02:14.6]} 21... Bxd4 {[%clk 0:01:19.4]} 22. Qxc6 {[%clk 0:02:09.3]}
22... Rb8 {[%clk 0:01:06.8]} 23. Nd6 {[%clk 0:01:51.7]} 23... Rb6 {[%clk
0:01:06]} 24. Qxc8 {[%clk 0:01:49.4]} 24... Qxd6 {[%clk 0:01:06.5]} 25. Qg4
{[%clk 0:01:47.7]} 25... Nf6 {[%clk 0:00:55.4]} 26. Qf5 {[%clk 0:01:40.8]} 26...
a6 {[%clk 0:00:36.9]} 27. a3 {[%clk 0:01:20.2]} 27... Rb7 {[%clk 0:00:29.1]} 28.
Bf4 {[%clk 0:01:18.4]} 28... Qb6 {[%clk 0:00:30.2]} 29. Bg3 {[%clk 0:01:10.8]}
29... g6 {[%clk 0:00:24.1]} 30. Qf3 {[%clk 0:01:08.3]} 30... Rd7 {[%clk
0:00:18.9]} 31. Be5 {[%clk 0:01:04.3]} 31... Bxe5 {[%clk 0:00:18.8]} 32. Rxe5
{[%clk 0:01:06.2]} 32... Rfd8 {[%clk 0:00:20]} 33. Ree1 {[%clk 0:00:58.8]} 33...
Kg7 {[%clk 0:00:20.2]} 34. h3 {[%clk 0:00:57.9]} 34... h5 {[%clk 0:00:20.3]} 35.
Re3 {[%clk 0:00:52.2]} 35... Nd5 {[%clk 0:00:20.2]} 36. Re5 {[%clk 0:00:40.4]}
36... Nc3 {[%clk 0:00:21.2]} 37. Rd2 {[%clk 0:00:37.1]} 37... Nb1 {[%clk
0:00:18.3]} 38. Bxb1 {[%clk 0:00:31.4]} 38... Rxd2 {[%clk 0:00:18.6]} 39. Qc3
{[%clk 0:00:31.8]} 39... Qd4 {[%clk 0:00:17.9]} 40. Qxd4 {[%clk 0:00:31.3]}
40... R8xd4 {[%clk 0:00:18.9]} 41. Be4 {[%clk 0:00:32.2]} 41... Ra2 {[%clk
0:00:12.6]} 42. Bb7 {[%clk 0:00:23.4]} 42... Rxa3 {[%clk 0:00:13.2]} 43. Rc5
{[%clk 0:00:23.1]} 43... Rxb4 {[%clk 0:00:14.1]} 44. Rc6 {[%clk 0:00:24.5]}
44... a5 {[%clk 0:00:14.7]} 45. Rc7 {[%clk 0:00:26]} 45... Rd4 {[%clk
0:00:15.7]} 46. Rc5 {[%clk 0:00:26]} 46... b4 {[%clk 0:00:16.6]} 47. Rb5 {[%clk
0:00:27.5]} 47... Rd2 {[%clk 0:00:16.3]} 48. Bd5 {[%clk 0:00:24.9]} 48... Ra1+
{[%clk 0:00:17.3]} 49. Kh2 {[%clk 0:00:25.6]} 49... Rxf2 {[%clk 0:00:18.7]} 50.
Rb7 {[%clk 0:00:24.7]} 50... Rf5 {[%clk 0:00:17]} 51. Be6 {[%clk 0:00:24.5]}
51... Rf6 {[%clk 0:00:16.6]} 52. Bd5 {[%clk 0:00:25.3]} 52... Rd1 {[%clk
0:00:15.5]} 53. Rb5 {[%clk 0:00:23.2]} 53... Rf5 {[%clk 0:00:16.2]} 54. Bc4
{[%clk 0:00:21.2]} 54... Rxb5 {[%clk 0:00:17.2]} 55. Bxb5 {[%clk 0:00:23.1]}
55... b3 {[%clk 0:00:18.8]} 56. Ba4 {[%clk 0:00:23.3]} 56... b2 {[%clk
0:00:20.3]} 57. Bxd1 {[%clk 0:00:23.9]} 57... b1=Q {[%clk 0:00:21.3]} 58. Bf3
{[%clk 0:00:25.8]} 58... a4 {[%clk 0:00:22.2]} 59. h4 {[%clk 0:00:27.7]} 59...
a3 {[%clk 0:00:23.5]} 60. Kg3 {[%clk 0:00:28.8]} 60... a2 {[%clk 0:00:24.2]} 61.
Bxh5 {[%clk 0:00:30.7]} 61... gxh5 {[%clk 0:00:24.4]} 62. Kf4 {[%clk 0:00:32.6]}
62... a1=Q {[%clk 0:00:25.1]} 63. Kg5 {[%clk 0:00:34.5]} 63... Qe5# {[%clk
0:00:26.1]} 0-1

[Event "*** Biggest EVER Titled Tuesday"]
[Site "Chess.com"]
[Date "2018.04.17"]
[Round "4"]
[White "Blackmind96"]
[Black "pulvettd"]
[Result "0-1"]
[WhiteElo "2542"]
[BlackElo "2524"]
[TimeControl "180+2"]
[EndTime "13:54:36 PDT"]
[Termination "pulvettd won by resignation"]

1. d4 {[%clk 0:03:01.9]} 1... Nf6 {[%clk 0:02:59.5]} 2. c4 {[%clk 0:03:01.8]}
2... g6 {[%clk 0:03:00.7]} 3. Nc3 {[%clk 0:03:00.3]} 3... Bg7 {[%clk 0:03:02.6]}
4. e4 {[%clk 0:03:00.7]} 4... O-O {[%clk 0:03:04.5]} 5. f3 {[%clk 0:03:00.5]}
5... d6 {[%clk 0:03:05.5]} 6. Be3 {[%clk 0:03:01.5]} 6... c5 {[%clk 0:03:05.9]}
7. Nge2 {[%clk 0:03:02.3]} 7... Nc6 {[%clk 0:03:06.1]} 8. Qd2 {[%clk 0:03:02.9]}
8... Qa5 {[%clk 0:03:04.7]} 9. O-O-O {[%clk 0:03:02.7]} 9... e5 {[%clk
0:02:57.9]} 10. dxc5 {[%clk 0:02:57.8]} 10... dxc5 {[%clk 0:02:57.9]} 11. Kb1
{[%clk 0:02:49.5]} 11... Nd4 {[%clk 0:02:52.3]} 12. Nd5 {[%clk 0:02:48.2]} 12...
Qxd2 {[%clk 0:02:48.9]} 13. Nxf6+ {[%clk 0:02:31.8]} 13... Bxf6 {[%clk
0:02:48.5]} 14. Rxd2 {[%clk 0:02:33.7]} 14... Be6 {[%clk 0:02:40.8]} 15. Nc3
{[%clk 0:02:34.4]} 15... Rab8 {[%clk 0:02:36.5]} 16. Bd3 {[%clk 0:02:21.2]}
16... a6 {[%clk 0:02:34.5]} 17. Nd5 {[%clk 0:02:06.4]} 17... Bg7 {[%clk
0:02:32.3]} 18. Rc1 {[%clk 0:02:03]} 18... h6 {[%clk 0:02:11]} 19. Rdd1 {[%clk
0:01:58.2]} 19... Rfd8 {[%clk 0:02:05.9]} 20. Bf2 {[%clk 0:01:46.5]} 20... Kf8
{[%clk 0:02:03.5]} 21. Bh4 {[%clk 0:01:44]} 21... Rd7 {[%clk 0:01:56.8]} 22. Nb6
{[%clk 0:01:38.8]} 22... Rd6 {[%clk 0:01:54]} 23. Nd5 {[%clk 0:01:40.1]} 23...
Rd7 {[%clk 0:01:55]} 24. Nb6 {[%clk 0:01:39.2]} 24... Rd6 {[%clk 0:01:53]} 25.
Nd5 {[%clk 0:01:40.5]} 25... g5 {[%clk 0:01:53.5]} 26. Be1 {[%clk 0:01:36.7]}
26... Rc6 {[%clk 0:01:49.4]} 27. Bf2 {[%clk 0:01:26.4]} 27... b5 {[%clk
0:01:45.5]} 28. h3 {[%clk 0:01:09.8]} 28... Rcc8 {[%clk 0:01:30]} 29. Be1 {[%clk
0:01:00.6]} 29... Rb7 {[%clk 0:01:28.2]} 30. Ba5 {[%clk 0:00:42.9]} 30... f6
{[%clk 0:01:22.7]} 31. Bf1 {[%clk 0:00:31.6]} 31... b4 {[%clk 0:01:18.8]} 32.
Nb6 {[%clk 0:00:23]} 32... Rcb8 {[%clk 0:01:13.7]} 33. Na4 {[%clk 0:00:23.5]}
33... Rc8 {[%clk 0:01:10.7]} 34. Bb6 {[%clk 0:00:23.7]} 34... f5 {[%clk
0:00:56.6]} 35. Bxc5+ {[%clk 0:00:24]} 35... Kf7 {[%clk 0:00:56.5]} 36. exf5
{[%clk 0:00:23.4]} 36... Bxf5+ {[%clk 0:00:56.4]} 37. Bd3 {[%clk 0:00:24.1]}
37... Bxd3+ {[%clk 0:00:57.1]} 38. Rxd3 {[%clk 0:00:26]} 38... Ne6 {[%clk
0:00:49.7]} 39. Bd6 {[%clk 0:00:22.8]} 39... Nf4 {[%clk 0:00:49.8]} 40. Rd2
{[%clk 0:00:22]} 40... Rc6 {[%clk 0:00:44.9]} 41. c5 {[%clk 0:00:11.8]} 41...
Ne6 {[%clk 0:00:42.1]} 42. b3 {[%clk 0:00:11.5]} 42... Nd4 {[%clk 0:00:40.1]}
43. Rcd1 {[%clk 0:00:12]} 43... Nb5 {[%clk 0:00:39.1]} 44. Nb2 {[%clk 0:00:13]}
44... Nc3+ {[%clk 0:00:39]} 45. Kc2 {[%clk 0:00:14.4]} 45... Nxd1 {[%clk
0:00:40]} 46. Rxd1 {[%clk 0:00:16.2]} 46... Rd7 {[%clk 0:00:35.4]} 47. Nc4
{[%clk 0:00:16.7]} 47... Ke6 {[%clk 0:00:35.6]} 48. Re1 {[%clk 0:00:17.3]} 48...
a5 {[%clk 0:00:31.3]} 49. Nxa5 {[%clk 0:00:16.2]} 49... Rdxd6 {[%clk 0:00:29.3]}
50. Nxc6 {[%clk 0:00:17]} 50... Rxc6 {[%clk 0:00:30.6]} 51. Kd3 {[%clk
0:00:18.8]} 51... Rxc5 {[%clk 0:00:31.6]} 52. Re2 {[%clk 0:00:20.1]} 52... Kd5
{[%clk 0:00:30.7]} 53. Rd2 {[%clk 0:00:20.6]} 53... Rc3+ {[%clk 0:00:31.2]} 54.
Ke2+ {[%clk 0:00:21.8]} 54... Ke6 {[%clk 0:00:32.6]} 55. g3 {[%clk 0:00:20]}
55... e4 {[%clk 0:00:28.9]} 56. fxe4 {[%clk 0:00:20.6]} 56... Rxg3 {[%clk
0:00:29.7]} 0-1

[Event "*** Biggest EVER Titled Tuesday"]
[Site "Chess.com"]
[Date "2018.04.17"]
[Round "4"]
[White "ToivoK3"]
[Black "Godzillator"]
[Result "0-1"]
[WhiteElo "2228"]
[BlackElo "2291"]
[TimeControl "180+2"]
[EndTime "13:54:39 PDT"]
[Termination "Godzillator won by resignation"]

1. b3 {[%clk 0:03:01.9]} 1... Nf6 {[%clk 0:02:59.8]} 2. Bb2 {[%clk 0:03:02.7]}
2... e6 {[%clk 0:03:00.9]} 3. Nf3 {[%clk 0:02:59.3]} 3... b6 {[%clk 0:03:01.4]}
4. g3 {[%clk 0:02:59.1]} 4... Bb7 {[%clk 0:03:02.5]} 5. Bg2 {[%clk 0:03:00.6]}
5... Be7 {[%clk 0:03:03.8]} 6. O-O {[%clk 0:03:01.6]} 6... O-O {[%clk
0:03:04.7]} 7. c4 {[%clk 0:03:02.7]} 7... c5 {[%clk 0:03:05.3]} 8. e3 {[%clk
0:02:57.4]} 8... d5 {[%clk 0:03:04.8]} 9. Nc3 {[%clk 0:02:57.3]} 9... dxc4
{[%clk 0:03:05.1]} 10. bxc4 {[%clk 0:02:59.1]} 10... Nc6 {[%clk 0:03:04.4]} 11.
Qe2 {[%clk 0:02:58.7]} 11... Rc8 {[%clk 0:03:02.5]} 12. Rfd1 {[%clk 0:02:57.5]}
12... Qc7 {[%clk 0:03:03.2]} 13. Rac1 {[%clk 0:02:56.9]} 13... Qb8 {[%clk
0:03:03.6]} 14. d4 {[%clk 0:02:57.2]} 14... cxd4 {[%clk 0:03:04]} 15. exd4
{[%clk 0:02:59.1]} 15... Rfe8 {[%clk 0:03:00.1]} 16. d5 {[%clk 0:02:18.3]} 16...
exd5 {[%clk 0:02:59.6]} 17. Nxd5 {[%clk 0:02:09.9]} 17... Nxd5 {[%clk
0:02:59.2]} 18. cxd5 {[%clk 0:02:11.8]} 18... Bf6 {[%clk 0:02:56.9]} 19. Qd2
{[%clk 0:01:30.4]} 19... Bxb2 {[%clk 0:02:55.1]} 20. Qxb2 {[%clk 0:01:32.3]}
20... Na5 {[%clk 0:02:55.6]} 21. Nh4 {[%clk 0:01:03.4]} 21... Nc4 {[%clk
0:02:53.5]} 22. Qd4 {[%clk 0:01:01.3]} 22... Nd6 {[%clk 0:02:53.7]} 23. Qf4
{[%clk 0:00:58.6]} 23... g6 {[%clk 0:02:48.9]} 24. Bf3 {[%clk 0:00:42.2]} 24...
Rxc1 {[%clk 0:02:32.9]} 25. Rxc1 {[%clk 0:00:44.1]} 25... Nb5 {[%clk 0:02:32.4]}
26. Qxb8 {[%clk 0:00:42.4]} 26... Rxb8 {[%clk 0:02:32.5]} 27. Re1 {[%clk
0:00:13.4]} 27... Nd4 {[%clk 0:02:26.8]} 28. Bg2 {[%clk 0:00:14.1]} 28... Kf8
{[%clk 0:02:24.9]} 29. Nf3 {[%clk 0:00:15.1]} 29... Nb5 {[%clk 0:02:14.5]} 30.
Ne5 {[%clk 0:00:14.8]} 30... Rd8 {[%clk 0:02:12.3]} 31. Nc6 {[%clk 0:00:15.1]}
31... Bxc6 {[%clk 0:02:00.4]} 32. dxc6 {[%clk 0:00:17]} 32... Rc8 {[%clk
0:02:00.5]} 33. Rd1 {[%clk 0:00:17.2]} 33... Rc7 {[%clk 0:01:55.9]} 34. Rd8+
{[%clk 0:00:17.7]} 34... Ke7 {[%clk 0:01:55.7]} 35. Rb8 {[%clk 0:00:17.7]} 35...
Nd4 {[%clk 0:01:46.4]} 36. Kf1 {[%clk 0:00:11.9]} 36... Nxc6 {[%clk 0:01:39.5]}
37. Bxc6 {[%clk 0:00:13.8]} 37... Rxc6 {[%clk 0:01:40.6]} 38. Rb7+ {[%clk
0:00:15.5]} 38... Ke6 {[%clk 0:01:38.7]} 39. Rxa7 {[%clk 0:00:16.9]} 39... h5
{[%clk 0:01:37.6]} 40. Ra6 {[%clk 0:00:17.7]} 40... Kd5 {[%clk 0:01:36]} 41. Kg2
{[%clk 0:00:18.2]} 41... f5 {[%clk 0:01:35.8]} 42. Ra8 {[%clk 0:00:18.3]} 42...
Kc4 {[%clk 0:01:35.9]} 43. Kf3 {[%clk 0:00:18.9]} 43... Kd3 {[%clk 0:01:33.6]}
44. h4 {[%clk 0:00:18]} 44... Kc2 {[%clk 0:01:33.3]} 45. Kf4 {[%clk 0:00:18.8]}
45... Kb2 {[%clk 0:01:33.7]} 46. Kg5 {[%clk 0:00:20.1]} 46... Rd6 {[%clk
0:01:24.9]} 47. a4 {[%clk 0:00:21.2]} 47... Kb3 {[%clk 0:01:24.9]} 48. a5 {[%clk
0:00:21.9]} 48... b5 {[%clk 0:01:24.7]} 49. a6 {[%clk 0:00:19.1]} 49... b4
{[%clk 0:01:25]} 50. a7 {[%clk 0:00:20.2]} 50... Ra6 {[%clk 0:01:21.6]} 51. f4
{[%clk 0:00:17.9]} 51... Ka3 {[%clk 0:01:21.2]} 52. Rb8 {[%clk 0:00:18.5]} 52...
Rxa7 {[%clk 0:01:20.8]} 53. Kxg6 {[%clk 0:00:20.4]} 53... Ra5 {[%clk 0:01:12.4]}
54. Kxh5 {[%clk 0:00:20.2]} 54... Ka4 {[%clk 0:01:09.4]} 55. Kg6 {[%clk
0:00:19.5]} 55... Rb5 {[%clk 0:01:10.3]} 56. Ra8+ {[%clk 0:00:20.9]} 56... Kb3
{[%clk 0:01:10.7]} 57. h5 {[%clk 0:00:19.7]} 57... Kc2 {[%clk 0:01:07.1]} 58.
Rc8+ {[%clk 0:00:19.8]} 58... Kd2 {[%clk 0:01:06.9]} 59. Rd8+ {[%clk 0:00:21.1]}
59... Kc2 {[%clk 0:01:07.6]} 60. Re8 {[%clk 0:00:20.1]} 60... b3 {[%clk
0:01:06.8]} 61. Re2+ {[%clk 0:00:18.5]} 61... Kd3 {[%clk 0:01:06.9]} 62. Re1
{[%clk 0:00:19.1]} 62... b2 {[%clk 0:01:02.5]} 63. h6 {[%clk 0:00:19.5]} 63...
b1=Q {[%clk 0:00:59.8]} 64. Rxb1 {[%clk 0:00:20.1]} 64... Rxb1 {[%clk
0:01:00.8]} 65. h7 {[%clk 0:00:18.9]} 65... Rh1 {[%clk 0:01:00.6]} 66. Kg7
{[%clk 0:00:20.1]} 66... Ke4 {[%clk 0:01:00.4]} 67. h8=Q {[%clk 0:00:21.2]}
67... Rxh8 {[%clk 0:01:00.4]} 68. Kxh8 {[%clk 0:00:23.1]} 68... Kf3 {[%clk
0:01:01.4]} 69. Kg7 {[%clk 0:00:23.3]} 69... Kxg3 {[%clk 0:01:02.4]} 0-1

[Event "*** Biggest EVER Titled Tuesday"]
[Site "Chess.com"]
[Date "2018.04.17"]
[Round "4"]
[White "AkshatChandra"]
[Black "Infernal_XaM"]
[Result "1-0"]
[WhiteElo "2798"]
[BlackElo "2731"]
[TimeControl "180+2"]
[EndTime "13:54:41 PDT"]
[Termination "AkshatChandra won by resignation"]

1. e4 {[%clk 0:03:01.9]} 1... g6 {[%clk 0:02:58.3]} 2. d4 {[%clk 0:03:02.7]}
2... Bg7 {[%clk 0:02:59.9]} 3. Nc3 {[%clk 0:03:04.2]} 3... d5 {[%clk 0:03:01.1]}
4. Nxd5 {[%clk 0:02:58.8]} 4... c6 {[%clk 0:03:01.7]} 5. Ne3 {[%clk 0:02:59.8]}
5... Qxd4 {[%clk 0:03:02.6]} 6. Qxd4 {[%clk 0:03:00.8]} 6... Bxd4 {[%clk
0:03:04.1]} 7. Nf3 {[%clk 0:03:02.7]} 7... Bb6 {[%clk 0:03:04.2]} 8. Nc4 {[%clk
0:03:00.4]} 8... Bc7 {[%clk 0:03:04.7]} 9. a4 {[%clk 0:02:58.9]} 9... Nf6 {[%clk
0:03:04.9]} 10. Bd3 {[%clk 0:02:59.5]} 10... Nbd7 {[%clk 0:03:04.8]} 11. Be3
{[%clk 0:02:58.3]} 11... Ng4 {[%clk 0:03:05.6]} 12. Bd4 {[%clk 0:02:57.7]} 12...
e5 {[%clk 0:03:04.3]} 13. Bc3 {[%clk 0:02:58.4]} 13... f6 {[%clk 0:03:05.5]} 14.
h3 {[%clk 0:02:50.5]} 14... Nh6 {[%clk 0:03:05.9]} 15. Bb4 {[%clk 0:02:43.8]}
15... Nf7 {[%clk 0:03:06.8]} 16. a5 {[%clk 0:02:44.2]} 16... Nf8 {[%clk
0:02:51.4]} 17. O-O {[%clk 0:02:44.7]} 17... Be6 {[%clk 0:02:51.1]} 18. Rfd1
{[%clk 0:02:36.8]} 18... Nd7 {[%clk 0:02:51.1]} 19. Ne3 {[%clk 0:02:34.2]} 19...
O-O-O {[%clk 0:02:50.9]} 20. Bc4 {[%clk 0:02:29.1]} 20... Rhe8 {[%clk
0:02:49.6]} 21. Bxe6 {[%clk 0:02:23.6]} 21... Rxe6 {[%clk 0:02:50.4]} 22. c4
{[%clk 0:01:56.1]} 22... Bd6 {[%clk 0:02:50.2]} 23. Bxd6 {[%clk 0:01:37.4]}
23... Nxd6 {[%clk 0:02:50.4]} 24. Nd2 {[%clk 0:01:33.1]} 24... Nc5 {[%clk
0:02:51]} 25. f3 {[%clk 0:01:31.3]} 25... Nd3 {[%clk 0:02:52]} 26. Rab1 {[%clk
0:01:03.1]} 26... Nf7 {[%clk 0:02:38.9]} 27. Kf1 {[%clk 0:00:55.2]} 27... Red6
{[%clk 0:02:38.4]} 28. Nb3 {[%clk 0:00:56.3]} 28... Ng5 {[%clk 0:02:30.4]} 29.
c5 {[%clk 0:00:52.2]} 29... R6d7 {[%clk 0:02:31.4]} 30. a6 {[%clk 0:00:52.7]}
30... bxa6 {[%clk 0:02:28.6]} 31. Ra1 {[%clk 0:00:47.1]} 31... Ne6 {[%clk
0:02:28.7]} 32. Rxa6 {[%clk 0:00:43.8]} 32... Kb7 {[%clk 0:02:29.5]} 33. Rda1
{[%clk 0:00:42.7]} 33... Ra8 {[%clk 0:02:14.8]} 34. R6a5 {[%clk 0:00:40.6]}
34... Nd4 {[%clk 0:02:11.6]} 35. Nxd4 {[%clk 0:00:33.8]} 35... Rxd4 {[%clk
0:02:12.5]} 36. b3 {[%clk 0:00:30.9]} 36... Rb4 {[%clk 0:02:08.3]} 37. Nc4
{[%clk 0:00:32.2]} 37... Rxb3 {[%clk 0:02:05.4]} 38. Nb6 {[%clk 0:00:33]} 38...
axb6 {[%clk 0:01:50.2]} 39. Rxa8 {[%clk 0:00:32.2]} 39... bxc5 {[%clk
0:01:51.5]} 40. R1a7+ {[%clk 0:00:26.2]} 40... Kb6 {[%clk 0:01:52.6]} 41. Rb8+
{[%clk 0:00:23.8]} 41... Kxa7 {[%clk 0:01:53.2]} 42. Rxb3 {[%clk 0:00:25.7]}
42... Nb4 {[%clk 0:01:49.7]} 43. Ke2 {[%clk 0:00:24.7]} 43... Kb6 {[%clk
0:01:50.8]} 44. Kd2 {[%clk 0:00:23.3]} 44... Kb5 {[%clk 0:01:48.4]} 45. Ra3
{[%clk 0:00:24.9]} 45... Na6 {[%clk 0:01:42.2]} 46. Kc3 {[%clk 0:00:23.6]} 46...
c4 {[%clk 0:01:42.8]} 47. Ra1 {[%clk 0:00:23.3]} 47... Nc5 {[%clk 0:01:43]} 48.
Ra7 {[%clk 0:00:23.6]} 48... h5 {[%clk 0:01:37.6]} 49. h4 {[%clk 0:00:21.6]}
49... Nd3 {[%clk 0:01:36.6]} 50. Rg7 {[%clk 0:00:20.8]} 50... Nf4 {[%clk
0:01:37.3]} 51. g3 {[%clk 0:00:15.1]} 51... Ne2+ {[%clk 0:01:37.9]} 52. Kd2
{[%clk 0:00:16.1]} 52... Nd4 {[%clk 0:01:36.3]} 53. Rxg6 {[%clk 0:00:15.6]}
53... Nxf3+ {[%clk 0:01:37.4]} 54. Kc3 {[%clk 0:00:14.4]} 54... Kc5 {[%clk
0:01:36.4]} 55. Rxf6 {[%clk 0:00:14.5]} 55... Nd4 {[%clk 0:01:37.9]} 56. Rf2
{[%clk 0:00:12.9]} 56... Nb5+ {[%clk 0:01:38.5]} 57. Kc2 {[%clk 0:00:12.9]}
57... Kd4 {[%clk 0:01:38.8]} 58. g4 {[%clk 0:00:13.9]} 58... hxg4 {[%clk
0:01:35.5]} 59. h5 {[%clk 0:00:15.8]} 59... Ke3 {[%clk 0:01:35.8]} 60. Rf6
{[%clk 0:00:12.1]} 60... Nd4+ {[%clk 0:01:34.2]} 61. Kc3 {[%clk 0:00:13.2]}
61... g3 {[%clk 0:01:31.7]} 62. h6 {[%clk 0:00:14.7]} 62... Ne2+ {[%clk
0:01:29.1]} 63. Kxc4 {[%clk 0:00:15.5]} 63... Nf4 {[%clk 0:01:30.5]} 64. Rf5
{[%clk 0:00:12.5]} 64... Ne6 {[%clk 0:01:26.2]} 65. Rf6 {[%clk 0:00:05.6]} 65...
Ng5 {[%clk 0:01:23.4]} 66. Rg6 {[%clk 0:00:03.5]} 66... Nf7 {[%clk 0:01:16.2]}
67. Rxg3+ {[%clk 0:00:03.4]} 67... Kxe4 {[%clk 0:01:17.1]} 68. h7 {[%clk
0:00:04.1]} 68... Kf4 {[%clk 0:01:13.7]} 69. Rg7 {[%clk 0:00:04.7]} 69... Nh8
{[%clk 0:01:15]} 70. Rg8 {[%clk 0:00:05.8]} 1-0

[Event "*** Biggest EVER Titled Tuesday"]
[Site "Chess.com"]
[Date "2018.04.17"]
[Round "4"]
[White "Wraku89"]
[Black "Illingworth"]
[Result "1-0"]
[WhiteElo "2592"]
[BlackElo "2720"]
[TimeControl "180+2"]
[EndTime "13:54:47 PDT"]
[Termination "Wraku89 won by resignation"]

1. e4 {[%clk 0:03:01.9]} 1... e5 {[%clk 0:02:59.7]} 2. Nf3 {[%clk 0:03:02.6]}
2... Nf6 {[%clk 0:03:01]} 3. Nc3 {[%clk 0:03:04.5]} 3... Nc6 {[%clk 0:03:01.6]}
4. a3 {[%clk 0:03:05.3]} 4... g6 {[%clk 0:03:01.3]} 5. d4 {[%clk 0:03:05.5]}
5... exd4 {[%clk 0:03:02.4]} 6. Nxd4 {[%clk 0:03:07.4]} 6... Bg7 {[%clk
0:03:02.8]} 7. Nde2 {[%clk 0:03:08.9]} 7... O-O {[%clk 0:03:03.8]} 8. g3 {[%clk
0:03:10.3]} 8... d6 {[%clk 0:02:52.4]} 9. Bg2 {[%clk 0:03:11.3]} 9... Re8 {[%clk
0:02:53.8]} 10. O-O {[%clk 0:03:11.4]} 10... Bd7 {[%clk 0:02:54.9]} 11. h3
{[%clk 0:03:10.7]} 11... Qc8 {[%clk 0:02:55.1]} 12. Kh2 {[%clk 0:03:11.7]} 12...
a5 {[%clk 0:02:55.6]} 13. f4 {[%clk 0:03:11.7]} 13... a4 {[%clk 0:02:55.7]} 14.
Qd3 {[%clk 0:02:38.4]} 14... Ra5 {[%clk 0:02:56.1]} 15. g4 {[%clk 0:02:00.3]}
15... h5 {[%clk 0:01:43.2]} 16. g5 {[%clk 0:01:55.5]} 16... Nh7 {[%clk
0:01:44.2]} 17. Nd5 {[%clk 0:01:48.7]} 17... Ne7 {[%clk 0:01:39.5]} 18. Bd2
{[%clk 0:01:37.6]} 18... Rc5 {[%clk 0:01:26.7]} 19. Ndc3 {[%clk 0:01:12.9]}
19... Qa8 {[%clk 0:01:05.5]} 20. Be3 {[%clk 0:01:13.7]} 20... Ra5 {[%clk
0:01:02.8]} 21. Bd4 {[%clk 0:01:14.8]} 21... Bxd4 {[%clk 0:01:02.4]} 22. Nxd4
{[%clk 0:01:04.5]} 22... Qa6 {[%clk 0:01:01.2]} 23. Qd2 {[%clk 0:00:52.1]} 23...
Qb6 {[%clk 0:00:52]} 24. Kh1 {[%clk 0:00:43.6]} 24... Rc5 {[%clk 0:00:42.2]} 25.
Nde2 {[%clk 0:00:40.8]} 25... Bb5 {[%clk 0:00:41.4]} 26. Bf3 {[%clk 0:00:18.8]}
26... Bxe2 {[%clk 0:00:40.7]} 27. Qxe2 {[%clk 0:00:15.8]} 27... Ra8 {[%clk
0:00:34]} 28. Rab1 {[%clk 0:00:15.9]} 28... Nc6 {[%clk 0:00:32.7]} 29. Qd2
{[%clk 0:00:14.2]} 29... Qa5 {[%clk 0:00:32.6]} 30. f5 {[%clk 0:00:14.1]} 30...
Re8 {[%clk 0:00:32.2]} 31. fxg6 {[%clk 0:00:12.4]} 31... fxg6 {[%clk 0:00:34.1]}
32. Bg2 {[%clk 0:00:13.1]} 32... Nxg5 {[%clk 0:00:34.7]} 33. Qf4 {[%clk
0:00:10.6]} 33... Rxc3 {[%clk 0:00:11.5]} 34. bxc3 {[%clk 0:00:12.5]} 34... Qe5
{[%clk 0:00:12.5]} 35. Rxb7 {[%clk 0:00:11.6]} 35... Qxf4 {[%clk 0:00:13.4]} 36.
Rxf4 {[%clk 0:00:13.5]} 36... Re7 {[%clk 0:00:14.9]} 37. e5 {[%clk 0:00:08.9]}
37... Nxe5 {[%clk 0:00:15.6]} 38. Rxa4 {[%clk 0:00:09.9]} 38... Ne6 {[%clk
0:00:16.9]} 39. Bd5 {[%clk 0:00:09.9]} 39... Kg7 {[%clk 0:00:18]} 40. Bxe6
{[%clk 0:00:11]} 40... Rxe6 {[%clk 0:00:19.9]} 41. Rxc7+ {[%clk 0:00:12.3]}
41... Kh6 {[%clk 0:00:21.5]} 42. Re4 {[%clk 0:00:13.9]} 42... g5 {[%clk
0:00:22.7]} 43. a4 {[%clk 0:00:14]} 43... Kg6 {[%clk 0:00:24.2]} 44. a5 {[%clk
0:00:14.9]} 44... Kf5 {[%clk 0:00:25.7]} 45. Re1 {[%clk 0:00:15.1]} 45... d5
{[%clk 0:00:25.4]} 46. Rc5 {[%clk 0:00:14.7]} 46... Rd6 {[%clk 0:00:25.5]} 47.
Ra1 {[%clk 0:00:09.4]} 47... Nd7 {[%clk 0:00:21.9]} 48. Rb5 {[%clk 0:00:07.2]}
48... Ra6 {[%clk 0:00:21.5]} 49. Rxd5+ {[%clk 0:00:06.5]} 49... Ke6 {[%clk
0:00:22.4]} 50. Rxg5 {[%clk 0:00:07.5]} 50... Nf6 {[%clk 0:00:23.8]} 51. Rf1
{[%clk 0:00:07.5]} 51... Ke7 {[%clk 0:00:24.1]} 52. Re5+ {[%clk 0:00:08.2]}
52... Kd7 {[%clk 0:00:24.5]} 53. c4 {[%clk 0:00:08.4]} 53... h4 {[%clk
0:00:23.3]} 54. Rb5 {[%clk 0:00:08.3]} 54... Ne4 {[%clk 0:00:24.3]} 55. Rd1+
{[%clk 0:00:07.9]} 55... Kc6 {[%clk 0:00:25.1]} 56. Rd4 {[%clk 0:00:08.6]} 56...
Ng3+ {[%clk 0:00:25]} 57. Kg2 {[%clk 0:00:09.8]} 57... Ra8 {[%clk 0:00:26.1]}
58. Rxh4 {[%clk 0:00:10.8]} 58... Ne2 {[%clk 0:00:27.6]} 59. Rh6+ {[%clk
0:00:11.6]} 59... Kc7 {[%clk 0:00:29.1]} 60. Kf2 {[%clk 0:00:09.2]} 60... Nd4
{[%clk 0:00:30.3]} 61. Rc5+ {[%clk 0:00:08.7]} 1-0